bitfinex/quotes_ETHUSD_20220305
["timestamp","ask_amount","ask_price","bid_price","bid_amount"]
[1646498879120,3.832827,2684.2,2683.8,0.02910471]
[1646498879121,5.0,2684.1,2683.2,0.25]
[1646498879319,5.0,2684.1,2683.0,0.3726]
[1646498879320,3.0,2683.9,2683.0,0.3726]
[1646498879520,3.0,2683.7,2683.0,0.3726]
[1646498879720,3.0,2683.5,2683.0,0.3726]
[1646498879919,1.12643522,2683.1,2683.0,0.3726]
[1646498880120,1.0,2683.7,2683.0,0.3726]
[1646498880320,1.21121486,2683.8,2682.6,0.25]
[1646498880720,3.0,2683.7,2682.6,0.25]
[1646498880961,0.3782,2683.6,2682.1,3.04808]
[1646498881160,0.3782,2683.6,2682.2,0.65122079]
[1646498881665,0.3782,2683.6,2682.2,0.60122079]
[1646498881857,1.07091596,2683.0,2682.2,1.54933986]
[1646498882056,0.12235968,2683.0,2682.2,0.94811907]
[1646498882257,0.12235968,2683.0,2682.8,0.00364348]
[1646498883065,0.12235968,2683.0,2682.2,0.94811907]
[1646498883462,0.12235968,2683.0,2682.8,0.00364348]
[1646498884363,0.12235968,2683.0,2682.8,0.02626811]
[1646498884809,0.12235968,2683.0,2681.9,0.25]
[1646498885008,16.3532,2683.1,2681.5,0.11386229]
[1646498885309,4.8332,2683.1,2681.5,0.11386229]
[1646498885510,0.3782,2682.8,2681.5,0.11386229]
[1646498885908,1.08114455,2682.2,2681.5,1.03779039]
[1646498886108,1.08114455,2682.2,2681.5,0.9239281]
[1646498886308,1.08114455,2682.2,2681.3,0.25]
[1646498887113,1.08114455,2682.2,2681.6,0.00218804]
[1646498887315,1.08114455,2682.2,2681.3,0.20218804]
[1646498887513,4.58114455,2682.2,2681.3,0.20218804]
[1646498887713,4.58114455,2682.2,2680.6,7.22944]
[1646498887714,0.3782,2682.1,2680.6,7.22944]
[1646498888017,0.3782,2682.1,2680.6,3.72944]
[1646498888668,0.3782,2682.1,2680.5,1.25]
[1646498888874,0.3782,2681.9,2680.5,0.25]
[1646498889072,3.3782,2681.7,2680.5,0.25]
[1646498889275,3.0,2681.2,2680.5,0.25]
[1646498889471,3.0,2681.2,2680.2,1.0]
[1646498889769,0.455,2681.1,2680.2,0.95]
[1646498890170,0.455,2681.5,2680.2,0.95]
[1646498890372,3.5,2681.4,2680.6,0.245]
[1646498890570,1.0,2681.6,2680.8,0.9672171]
[1646498890770,1.0,2681.7,2680.8,0.9672171]
[1646498890974,1.6451,2682.3,2680.8,0.9672171]
[1646498891173,1.1288,2683.1,2681.1,0.0121939]
[1646498891174,3.4407,2683.1,2681.1,0.0121939]
[1646498891387,3.4407,2683.1,2681.2,0.455]
[1646498891388,3.5,2683.0,2681.2,0.455]
[1646498891576,3.5,2683.0,2682.4,0.93167228]
[1646498891776,3.5,2683.0,2681.3,2.4545]
[1646498891973,3.5,2683.0,2681.6,0.0036286]
[1646498892209,1.09581484,2683.1,2681.6,1.8681786]
[1646498892409,3.5,2683.0,2681.6,1.8681786]
[1646498892610,3.5,2683.5,2681.6,1.8681786]
[1646498892912,0.84590592,2683.8,2681.8,0.01288208]
[1646498892913,0.78301486,2683.8,2681.8,0.01288208]
[1646498893109,0.78301486,2683.8,2682.5,0.9496]
[1646498893309,0.78301486,2683.8,2682.7,1.86381]
[1646498893714,0.78301486,2683.8,2683.3,0.91245257]
[1646498893915,0.78301486,2683.8,2683.3,1.84431257]
[1646498894917,0.78301486,2683.8,2683.3,1.83731257]
[1646498895316,0.78301486,2683.8,2683.4,3.5]
[1646498895719,0.00576785,2684.5,2683.4,4.955]
[1646498895965,0.00576785,2684.5,2683.7,0.93146]
[1646498896166,0.00576785,2684.5,2683.8,4.88634]
[1646498896363,1.04625629,2685.6,2683.9,1.02831019]
[1646498896565,1.04625629,2685.6,2684.8,1.06386203]
[1646498896566,0.00096,2685.5,2684.8,1.06386203]
[1646498896764,0.00362568,2684.9,2684.8,1.06386203]
[1646498897364,0.00362568,2684.9,2684.1,4.22316]
[1646498897563,3.00096,2686.0,2684.1,0.93156]
[1646498897773,0.45596,2686.0,2684.1,4.43156]
[1646498897966,0.00362603,2685.0,2684.1,4.43156]
[1646498898165,0.45596,2686.0,2684.2,0.1862]
[1646498898166,3.92846025,2686.0,2684.2,0.1862]
[1646498898365,3.92846025,2686.0,2684.1,1.11776]
[1646498898366,1.16302267,2685.3,2684.1,1.11776]
[1646498899170,1.16302267,2685.3,2684.1,0.1862]
[1646498899371,1.16302267,2685.3,2684.2,0.98722475]
[1646498899617,0.94324778,2684.8,2684.1,1.11778]
[1646498900216,0.94324778,2684.8,2684.1,0.1862]
[1646498900420,12.46324778,2684.8,2684.1,0.1862]
[1646498900623,1.13820759,2684.2,2684.1,0.1862]
[1646498901020,1.13820759,2684.2,2683.5,1.3229]
[1646498901224,0.455,2684.1,2683.5,0.9496]
[1646498901424,0.455,2684.1,2683.3,0.1862]
[1646498901630,0.455,2684.1,2684.0,0.00362699]
[1646498901820,1.13820759,2684.2,2684.0,0.00362699]
[1646498902021,1.455,2684.5,2684.0,0.00362699]
[1646498902227,3.5,2684.9,2682.9,1.11818]
[1646498902228,0.00047051,2683.5,2682.9,1.11818]
[1646498902420,0.00047051,2683.5,2683.0,0.3782]
[1646498902627,0.00096,2685.2,2683.2,0.3782]
[1646498902628,3.50096,2685.2,2683.2,0.3782]
[1646498902820,3.50096,2685.2,2683.7,2.24138]
[1646498902821,0.00096,2685.2,2683.7,2.24138]
[1646498903223,0.00096,2685.2,2684.9,1.04580327]
[1646498903477,2.8397,2685.5,2684.9,1.04580327]
[1646498903478,0.00096,2685.5,2684.9,1.04580327]
[1646498903872,0.00096,2685.8,2684.9,1.04580327]
[1646498904073,0.00096,2685.8,2684.2,5.61288]
[1646498904274,0.02352489,2684.8,2684.2,2.11288]
[1646498904478,0.02352489,2684.8,2683.7,0.01274722]
[1646498904680,0.455,2684.7,2683.6,0.09798722]
[1646498904982,3.8782,2684.6,2683.6,0.09798722]
[1646498905175,0.3782,2684.4,2683.6,0.09798722]
[1646498905375,12.3532,2684.3,2683.6,0.09798722]
[1646498905675,0.89659462,2683.4,2682.9,0.25]
[1646498905875,0.89659462,2683.4,2683.0,0.1862]
[1646498906074,0.89659462,2683.4,2682.7,0.1862]
[1646498906475,0.89659462,2683.4,2683.0,0.00362783]
[1646498907116,3.5,2683.3,2683.1,0.1862]
[1646498907316,0.3782,2683.3,2682.6,0.1862]
[1646498907519,0.3782,2683.3,2682.2,0.1862]
[1646498907717,1.35159462,2683.4,2683.1,0.00362779]
[1646498907917,3.955,2683.3,2683.1,0.00362779]
[1646498908120,3.5,2683.2,2683.1,0.00362779]
[1646498908319,12.975,2683.2,2683.1,0.00362779]
[1646498908523,1.8332,2683.2,2682.1,0.25]
[1646498908822,0.90029668,2682.7,2682.5,0.01451389]
[1646498909026,12.87529668,2682.7,2682.5,0.01451389]
[1646498909522,2.35529668,2682.7,2682.5,0.01451389]
[1646498909724,1.73349668,2682.7,2682.0,0.245]
[1646498909925,1.09676245,2682.1,2682.0,0.245]
[1646498910524,13.07176245,2682.1,2682.0,0.245]
[1646498910729,6.05176245,2682.1,2682.0,0.245]
[1646498911261,2.55176245,2682.1,2682.0,0.245]
[1646498911662,4.3782,2682.0,2680.4,0.3723]
[1646498911862,0.3782,2681.8,2680.2,1.24145643]
[1646498912062,0.455,2682.0,2680.2,1.24145643]
[1646498912063,0.3782,2681.6,2680.2,1.24145643]
[1646498912262,0.3782,2681.6,2680.2,0.46555643]
[1646498912463,1.18660844,2681.2,2680.5,1.12246285]
[1646498912667,0.455,2681.8,2680.5,1.12246285]
[1646498913163,3.5,2681.7,2680.2,0.93292]
[1646498913364,3.5,2681.7,2680.1,1.0]
[1646498913365,0.9331525,2681.4,2680.1,1.0]
[1646498913568,0.3782,2681.2,2680.1,1.0]
[1646498913765,0.455,2681.5,2680.1,1.0]
[1646498913966,0.455,2681.5,2679.8,2.6702]
[1646498913967,0.455,2682.0,2680.2,3.5]
[1646498914166,7.213263,2682.8,2681.4,0.90649855]
[1646498914167,1.64139907,2682.1,2681.4,0.90649855]
[1646498914365,1.64139907,2682.1,2681.4,0.75649855]
[1646498914366,0.02163744,2682.1,2681.4,0.75649855]
[1646498914811,0.02163744,2682.1,2681.6,0.00223825]
[1646498915812,1.47702399,2682.1,2680.8,3.75]
[1646498916013,1.47702399,2682.1,2680.8,0.25]
[1646498916214,0.02163744,2682.1,2680.8,0.6282]
[1646498916414,0.02163744,2682.1,2680.8,0.25]
[1646498916618,0.02163744,2682.1,2680.9,1.56253337]
[1646498916917,0.75483744,2682.4,2680.9,0.93269]
[1646498917118,0.3782,2682.2,2680.8,3.25]
[1646498917317,1.1620355,2681.8,2680.9,0.62982984]
[1646498917524,1.1620355,2681.8,2680.8,3.25]
[1646498918377,1.1120355,2681.8,2680.8,4.34019726]
[1646498918780,3.5,2681.7,2680.8,4.34019726]
[1646498918980,1.1120355,2681.8,2680.8,4.34019726]
[1646498919181,0.3782,2681.7,2680.8,4.34019726]
[1646498919580,1.1120355,2681.8,2681.2,0.0036226]
[1646498920180,4.9902355,2681.8,2681.2,0.0036226]
[1646498920582,4.9902355,2681.8,2680.8,1.34019726]
[1646498920783,1.1120355,2681.8,2681.4,0.00362243]
[1646498921884,2.1120355,2681.8,2680.8,1.34019726]
[1646498922133,2.1120355,2681.8,2681.5,0.00362235]
[1646498922314,1.19460777,2681.6,2681.5,0.00362235]
[1646498922917,1.19460777,2681.6,2680.9,1.135]
[1646498923314,1.19460777,2681.6,2681.4,0.00362239]
[1646498923519,0.455,2681.5,2681.4,0.00362239]
[1646498923718,11.975,2681.5,2681.4,0.00362239]
[1646498923918,0.455,2681.5,2681.4,0.00362239]
[1646498924121,1.455,2681.5,2681.0,0.01449172]
[1646498924320,12.3532,2681.5,2680.9,1.135]
[1646498924523,11.975,2681.5,2681.3,0.0035138]
[1646498924821,11.52,2681.4,2681.3,0.0035138]
[1646498925026,15.475,2681.4,2681.3,0.0035138]
[1646498925220,16.475,2681.4,2681.3,1.38e-05]
[1646498925424,16.475,2681.4,2680.9,1.135]
[1646498925621,11.52,2681.2,2681.0,1.135]
[1646498925861,11.52,2681.2,2680.2,0.25]
[1646498925862,16.3982,2681.0,2680.2,0.25]
[1646498926064,15.8532,2680.9,2680.2,0.25]
[1646498926262,15.8532,2680.9,2679.3,1.0]
[1646498926263,0.8332,2680.9,2679.9,1.01916308]
[1646498926572,3.4934,2681.5,2680.0,1.0334501]
[1646498926764,0.4812944,2681.8,2680.1,0.6552501]
[1646498926966,0.4812944,2681.8,2680.2,0.6552501]
[1646498927165,0.4812944,2681.8,2680.3,0.6552501]
[1646498927363,0.4812944,2681.8,2679.9,1.01916308]
[1646498927364,13.18788191,2681.8,2680.4,0.6552501]
[1646498927564,13.18788191,2681.8,2680.6,0.25]
[1646498927565,0.3782,2681.3,2680.6,0.25]
[1646498927765,0.3782,2681.3,2680.0,1.0]
[1646498927971,0.3782,2681.3,2680.1,0.65497728]
[1646498928167,0.455,2681.5,2681.0,0.00222233]
[1646498928368,11.52,2681.4,2681.0,0.00222233]
[1646498928568,0.455,2681.5,2681.0,0.00222233]
[1646498928769,0.97557481,2681.1,2681.0,0.00222233]
[1646498928970,1.35377481,2681.1,2680.4,0.9235582]
[1646498929269,1.80877481,2681.1,2680.0,1.0]
[1646498929471,1.43057481,2681.1,2680.7,0.0144336]
[1646498930118,11.52,2681.0,2680.7,0.0144336]
[1646498930416,0.3782,2680.7,2679.6,0.38819997]
[1646498930621,3.22352925,2680.7,2680.4,0.01443476]
[1646498930819,11.975,2680.6,2680.4,0.01443476]
[1646498931419,13.07861655,2680.5,2679.6,0.25]
[1646498931623,1.10346738,2679.9,2679.4,1.14066316]
[1646498931818,0.455,2680.4,2679.5,0.65482817]
[1646498932018,0.1865,2681.3,2679.5,0.65482817]
[1646498932019,0.455,2680.8,2679.9,1.04508011]
[1646498932218,0.455,2681.1,2679.9,1.04508011]
[1646498932821,0.455,2681.1,2680.4,1.18195555]
[1646498933019,11.975,2681.5,2680.4,0.00209813]
[1646498933222,11.975,2681.5,2679.9,1.25557204]
[1646498933223,3.5,2681.4,2679.9,1.25557204]
[1646498933473,3.955,2681.4,2679.9,1.25557204]
[1646498933873,0.3782,2680.9,2679.9,1.25557204]
[1646498934172,3.955,2681.4,2679.9,1.25557204]
[1646498934173,1.20868513,2680.3,2679.9,1.25557204]
[1646498934375,1.20868513,2680.3,2679.9,1.00557204]
[1646498935379,12.72868513,2680.3,2679.9,1.00557204]
[1646498935573,1.20868513,2680.3,2679.9,1.00557204]
[1646498935779,1.9333792,2680.7,2679.9,1.00557204]
[1646498935780,0.455,2680.8,2679.9,1.00557204]
[1646498935974,1.1865,2681.0,2679.9,1.00557204]
[1646498935975,1.0,2681.0,2679.9,1.00557204]
[1646498936174,3.5,2681.2,2679.9,1.00557204]
[1646498936377,0.455,2681.1,2679.9,0.95557204]
[1646498936576,3.5,2681.0,2679.9,0.95778338]
[1646498936774,0.97947793,2680.8,2679.9,0.95778338]
[1646498936975,12.95447793,2680.8,2679.9,0.95778338]
[1646498937213,1.43447793,2680.8,2679.9,0.95778338]
[1646498937413,1.43447793,2680.8,2679.9,0.95557204]
[1646498937813,0.3782,2680.7,2679.9,1.93964993]
[1646498938013,0.455,2680.7,2679.9,1.93964993]
[1646498938421,0.455,2680.7,2679.9,0.95917709]
[1646498938619,0.455,2680.7,2679.9,0.95557204]
[1646498938919,0.455,2680.7,2679.9,0.95917706]
[1646498939320,11.975,2680.7,2679.9,0.95917706]
[1646498939519,11.52,2680.4,2679.9,0.95917706]
[1646498939720,13.13447189,2680.3,2679.9,0.95917706]
[1646498939922,11.52,2680.1,2679.9,0.95557204]
[1646498940119,11.52,2680.1,2679.9,0.95917706]
[1646498940519,11.52,2680.1,2679.9,0.90917706]
[1646498940719,0.455,2680.2,2679.9,0.90917706]
[1646498940973,1.0,2680.5,2679.9,0.90557204]
[1646498941167,1.0,2680.8,2679.9,0.90557204]
[1646498941369,1.0,2680.8,2679.9,0.90905523]
[1646498941370,0.455,2680.8,2679.9,0.90905523]
[1646498941966,1.16409052,2680.6,2679.9,0.90905523]
[1646498942167,1.16409052,2680.6,2679.9,0.90557204]
[1646498942366,0.14692843,2680.6,2679.9,0.90557204]
[1646498942569,1.01557811,2680.1,2679.9,0.90905542]
[1646498943368,1.01557811,2680.1,2679.9,0.90557204]
[1646498943769,1.01557811,2680.1,2679.9,0.90905523]
[1646498944715,1.01557811,2680.1,2679.9,0.90557204]
[1646498944915,1.01557811,2680.1,2679.9,0.90911159]
[1646498945315,0.455,2680.4,2679.9,0.90911159]
[1646498945517,0.455,2680.4,2679.9,0.90293162]
[1646498945722,0.455,2680.8,2679.9,0.90293162]
[1646498945917,1.0,2681.4,2680.0,3.8782]
[1646498946122,0.1865,2681.7,2680.0,3.8782]
[1646498946318,1.9945944,2681.8,2680.0,5.0373]
[1646498946518,0.88534501,2681.5,2680.0,6.0373]
[1646498946821,0.88534501,2681.5,2680.0,1.1591]
[1646498947018,0.3782,2681.4,2680.0,1.1591]
[1646498947217,0.3782,2681.3,2680.0,1.1591]
[1646498947417,0.88534501,2681.5,2680.0,1.5373]
[1646498947618,0.88534501,2681.5,2680.0,5.0373]
[1646498947819,0.88534501,2681.5,2680.9,0.98569288]
[1646498948364,0.88534501,2681.5,2680.3,3.75]
[1646498948365,12.78354501,2681.5,2680.3,0.25]
[1646498948570,1.26354501,2681.5,2680.0,5.8993]
[1646498948772,1.26354501,2681.5,2680.0,2.3993]
[1646498948969,0.88534501,2681.5,2680.1,0.62500625]
[1646498949170,0.88534501,2681.5,2680.2,0.3782]
[1646498949370,0.88534501,2681.5,2680.6,1.08187243]
[1646498949569,0.1865,2681.6,2681.1,0.9965322]
[1646498949770,3.7,2681.5,2681.1,0.9965322]
[1646498952214,3.7,2681.5,2680.8,0.3782]
[1646498952420,3.7,2681.5,2680.2,0.3782]
[1646498952616,3.7,2681.5,2680.6,0.3782]
[1646498952816,3.7,2681.5,2680.7,1.00412018]
[1646498953115,3.7,2681.5,2680.8,0.62592018]
[1646498953317,4.70688453,2681.5,2681.0,1.13211496]
[1646498953720,4.70688453,2681.5,2680.3,0.3782]
[1646498953924,4.70688453,2681.5,2680.5,0.62689813]
[1646498954123,5.70688453,2681.5,2680.5,0.62689813]
[1646498954324,0.87329282,2681.4,2680.5,0.62689813]
[1646498954522,0.82329282,2681.4,2680.5,0.62689813]
[1646498954726,1.1720329,2681.0,2680.5,0.62689813]
[1646498955123,1.6270329,2681.0,2680.4,0.25]
[1646498955325,1.6270329,2681.0,2680.0,1.1591]
[1646498955523,13.1470329,2681.0,2680.0,1.1591]
[1646498955722,1.22672531,2680.3,2680.0,1.1591]
[1646498956168,0.455,2680.7,2680.0,1.1591]
[1646498956870,0.455,2681.2,2680.0,1.1591]
[1646498957069,0.1862,2681.3,2680.0,1.1591]
[1646498957270,1.87864495,2681.3,2680.8,0.8766157]
[1646498957469,1.0,2681.5,2680.8,0.8766157]
[1646498957669,3.9497,2681.6,2680.8,0.8766157]
[1646498958069,1.0,2681.6,2680.8,0.8766157]
[1646498958371,0.455,2681.7,2680.8,0.8766157]
[1646498958573,1.43297838,2681.7,2680.8,0.7766157]
[1646498958974,3.7,2681.6,2680.8,0.7766157]
[1646498959176,1.19214067,2681.2,2680.3,0.25]
[1646498959376,15.3982,2681.1,2680.3,0.25]
[1646498959632,0.455,2681.0,2680.0,3.5532]
[1646498959820,0.455,2681.0,2680.0,1.1591]
[1646498960021,0.335907,2681.5,2680.0,1.82037581]
[1646498960321,0.149407,2681.5,2680.2,0.66127581]
[1646498960720,3.649407,2681.5,2680.1,0.66127581]
[1646498960922,5.3663055,2681.7,2680.0,2.82037581]
[1646498961121,1.21232902,2681.1,2680.0,2.1591]
[1646498961320,1.21232902,2681.1,2680.0,1.1591]
[1646498962220,1.21232902,2681.1,2680.3,1.02655346]
[1646498963872,1.21232902,2681.1,2680.0,1.1591]
[1646498964473,3.5,2681.0,2680.0,1.1591]
[1646498964874,3.8782,2681.0,2680.0,1.1591]
[1646498965073,0.3782,2680.8,2680.0,1.1591]
[1646498965272,15.8532,2680.7,2680.0,1.1591]
[1646498965472,11.52,2680.5,2680.0,1.1591]
[1646498965671,11.975,2680.5,2680.0,1.1591]
[1646498965873,11.975,2680.5,2679.6,0.25]
[1646498965874,14.3982,2680.3,2679.6,0.25]
[1646498966072,0.3782,2680.0,2679.3,0.3729]
[1646498966273,1.17569633,2679.5,2679.3,0.3729]
[1646498966473,0.9325767,2679.9,2679.3,0.3729]
[1646498967224,1.3107767,2679.9,2679.3,0.3729]
[1646498967423,0.9325767,2679.9,2679.3,0.3729]
[1646498968023,1.06872566,2679.5,2679.3,0.3729]
[1646498968323,1.3107767,2679.9,2678.8,0.66127581]
[1646498968726,1.3107767,2679.9,2678.7,0.91229621]
[1646498968927,1.3107767,2679.9,2679.2,0.00337574]
[1646498969126,0.99912072,2679.3,2678.7,0.24717574]
[1646498969329,0.99912072,2679.3,2678.3,3.5]
[1646498969330,0.99912072,2679.3,2678.8,0.07344865]
[1646498969635,0.99912072,2679.3,2678.2,1.0]
[1646498969636,4.3332,2679.2,2678.0,0.25]
[1646498969830,0.3782,2679.0,2678.0,0.25]
[1646498970028,0.3782,2678.8,2677.7,0.1866]
[1646498970227,1.15553602,2678.7,2678.2,1.16281756]
[1646498970430,1.15553602,2678.7,2677.6,0.1865]
[1646498970915,11.8982,2678.5,2677.5,0.1865]
[1646498971113,11.8982,2678.3,2677.4,0.1867]
[1646498971311,11.8982,2678.3,2676.9,5.22914427]
[1646498971312,1.05069206,2677.7,2677.2,1.1373389]
[1646498971520,1.05069206,2677.7,2677.5,0.04035806]
[1646498971714,0.455,2677.9,2677.5,0.04035806]
[1646498972113,0.455,2677.9,2677.0,0.1867]
[1646498972114,0.455,2677.9,2677.1,0.04263176]
[1646498973817,1.05248968,2677.8,2677.4,0.00338661]
[1646498974419,3.955,2677.7,2677.4,0.00338661]
[1646498974639,3.2587702,2677.7,2677.4,0.00338661]
[1646498974829,1.0,2678.2,2677.2,0.51768289]
[1646498974830,1.455,2678.2,2677.2,0.51768289]
[1646498975231,0.4812944,2678.0,2677.3,0.04149491]
[1646498975632,0.4812944,2678.0,2677.4,1.57250088]
[1646498975831,0.4812944,2678.0,2677.5,0.51465326]
[1646498976232,0.4812944,2678.0,2677.4,1.05784762]
[1646498976531,0.4812944,2678.0,2677.5,0.51439736]
[1646498976931,0.4812944,2678.0,2677.2,0.1867]
[1646498977232,0.8594944,2678.0,2677.1,1.0]
[1646498977434,12.3794944,2678.0,2677.3,0.04149491]
[1646498977631,12.3794944,2678.0,2677.2,0.04206333]
[1646498977835,0.91589071,2677.3,2677.2,0.04206333]
[1646498978032,12.43589071,2677.3,2677.0,0.04320018]
[1646498978233,12.42602071,2677.3,2677.0,0.04320018]
[1646498978476,13.42602071,2677.3,2677.0,0.04320018]
[1646498978770,13.42602071,2677.3,2677.0,0.00349237]
[1646498978971,12.975,2677.3,2677.0,0.00349237]
[1646498979170,0.04313685,2677.2,2677.0,0.00349237]
[1646498979570,12.975,2677.3,2676.2,0.25]
[1646498979571,11.8982,2676.9,2676.2,0.25]
[1646498979771,12.8982,2676.9,2676.0,0.1867]
[1646498979974,0.04086315,2676.8,2676.6,0.01395965]
[1646498980375,0.04029473,2676.7,2676.6,0.01395965]
[1646498980573,0.04029473,2676.7,2676.0,0.15065965]
[1646498980574,1.22014117,2676.2,2676.0,0.15065965]
[1646498981572,1.22014117,2676.2,2675.5,0.25]
[1646498981775,13.57334117,2676.2,2675.5,0.2]
[1646498981975,3.0,2675.8,2674.9,0.25]
[1646498982228,3.955,2675.7,2674.8,0.00547464]
[1646498982428,0.1867,2675.9,2674.8,0.00547464]
[1646498982429,4.955,2675.6,2674.8,0.00547464]
[1646498982631,0.455,2675.5,2674.8,0.00547464]
[1646498982826,0.455,2675.4,2674.8,1.20897198]
[1646498983033,0.455,2675.4,2674.8,0.00547464]
[1646498983432,3.5,2675.3,2674.8,0.00547464]
[1646498983633,0.9352432,2675.5,2675.0,0.00215473]
[1646498983831,1.0,2675.4,2675.0,0.00215473]
[1646498984036,1.18388505,2675.2,2675.0,0.00215473]
[1646498984232,3.955,2675.1,2674.8,0.01094928]
[1646498984437,0.455,2675.1,2674.8,0.01094928]
[1646498984632,1.455,2675.1,2674.8,0.01094928]
[1646498984833,0.455,2675.1,2674.8,0.01094928]
[1646498985034,1.3904271,2675.1,2674.8,0.01094928]
[1646498985241,11.52,2675.0,2674.8,4.928e-05]
[1646498985435,11.52,2675.0,2673.4,3.5]
[1646498985436,5.0,2674.8,2673.4,3.5]
[1646498985633,5.18388505,2675.2,2673.3,0.0093824]
[1646498985634,11.52,2674.6,2673.3,0.0093824]
[1646498985873,0.455,2674.5,2674.2,0.05422336]
[1646498986072,1.0,2674.6,2674.2,0.01545952]
[1646498986274,0.455,2674.9,2674.2,0.01545952]
[1646498986472,1.0,2675.0,2674.2,0.01545952]
[1646498986675,1.0,2675.1,2674.2,0.01545952]
[1646498987272,1.19548845,2674.7,2674.2,1.0348144]
[1646498987473,1.19548845,2674.7,2674.0,0.03091904]
[1646498987676,1.19548845,2674.7,2673.6,0.26577756]
[1646498987677,0.455,2674.6,2673.6,0.26577756]
[1646498987876,0.455,2674.6,2673.6,0.31826932]
[1646498988073,1.6924,2674.6,2673.6,0.31826932]
[1646498988273,1.6924,2674.6,2674.0,0.003566]
[1646498988479,11.52,2674.5,2674.0,0.003566]
[1646498988684,0.9358293,2674.2,2674.0,0.003566]
[1646498988881,0.455,2674.2,2674.0,0.003566]
[1646498989080,2.0,2674.4,2674.0,0.003566]
[1646498989283,2.3262955,2674.6,2673.9,0.03553456]
[1646498989284,3.3262955,2674.6,2673.9,0.03553456]
[1646498989484,1.455,2674.6,2673.9,0.03553456]
[1646498989724,3.7,2674.5,2674.0,0.00331303]
[1646498989924,0.455,2674.4,2674.0,0.00331303]
[1646498990528,0.455,2674.4,2673.9,0.03553456]
[1646498990733,0.455,2674.4,2674.1,0.00331296]
[1646498991626,0.455,2674.4,2673.9,0.03553456]
[1646498992027,0.455,2674.4,2674.1,0.00331293]
[1646498992330,3.8782,2674.3,2673.4,0.25]
[1646498992528,1.11994835,2673.9,2673.4,0.90360106]
[1646498992928,0.9357205,2674.1,2673.4,0.90360106]
[1646498993137,0.9357205,2674.1,2673.2,0.29824142]
[1646498993380,0.9357205,2674.1,2673.2,0.07312763]
[1646498993381,3.5,2674.0,2673.2,0.07312763]
[1646498993586,11.52,2673.8,2673.2,0.03355568]
[1646498993791,11.52,2673.6,2673.2,0.03355568]
[1646498993985,4.5,2673.8,2673.2,0.03355568]
[1646498993986,1.0,2673.8,2673.2,0.03355568]
[1646498994187,1.0,2674.3,2673.5,1.00534805]
[1646498994387,3.5,2674.9,2673.5,1.00534805]
[1646498994388,3.8721,2675.0,2673.5,1.00534805]
[1646498994589,11.52,2674.6,2673.5,1.00534805]
[1646498994793,11.52,2674.4,2673.5,1.00534805]
[1646498994990,11.8982,2674.2,2673.5,1.00534805]
[1646498995187,4.656026,2674.1,2673.5,1.00534805]
[1646498995390,4.656026,2674.1,2673.3,0.0187648]
[1646498995391,0.3782,2674.0,2673.3,0.0187648]
[1646498995589,11.975,2673.9,2673.6,0.00191025]
[1646498995792,11.52,2673.7,2673.6,0.00191025]
[1646498995988,15.48789059,2673.7,2672.9,0.02620651]
[1646498996194,11.8982,2673.5,2672.9,0.03673547]
[1646498996388,11.8982,2673.5,2672.3,0.25]
[1646498996389,11.52,2672.4,2672.3,0.25]
[1646498996589,1.03338699,2672.5,2672.2,0.0041476]
[1646498996590,11.52,2672.3,2672.2,0.0041476]
[1646498996790,12.52,2672.3,2671.0,1.03031576]
[1646498997136,12.975,2672.3,2671.0,0.07435056]
[1646498997327,11.8982,2672.2,2671.0,0.07435056]
[1646498997528,1.455,2672.3,2671.0,0.07435056]
[1646498997529,1.11507598,2671.5,2671.0,1.06246578]
[1646498997729,0.34429635,2671.5,2670.6,0.31967972]
[1646498997927,0.34429635,2671.5,2671.0,0.0165904]
[1646498998129,11.86429635,2671.5,2671.0,0.0165904]
[1646498998432,11.52,2671.3,2671.0,0.0165904]
[1646498998632,0.455,2671.3,2671.0,0.0165904]
[1646498999828,15.02,2671.2,2671.0,9.04e-05]
[1646499000029,11.52,2670.9,2670.6,0.25]
[1646499000227,11.52,2670.7,2670.6,0.02974752]
[1646499000429,11.975,2670.7,2670.6,0.04402694]
[1646499000631,1.2272,2670.7,2670.6,0.04402694]
[1646499000869,0.7722,2670.7,2670.6,0.04402694]
[1646499001273,0.1882204,2671.3,2670.6,0.02974752]
[1646499001274,0.0010204,2671.3,2670.6,0.02974752]
[1646499001871,0.0010204,2671.3,2670.8,0.981576]
[1646499002170,0.0010204,2671.3,2670.6,0.02974752]
[1646499002872,0.0010204,2671.3,2670.9,0.0035694]
[1646499003177,3.7,2671.4,2670.9,0.0035694]
[1646499003578,3.7,2671.4,2671.1,0.3782]
[1646499003776,3.7,2671.4,2671.1,2.25041]
[1646499003978,1.1257,2671.4,2671.1,2.25041]
[1646499004723,1.1257,2671.4,2671.1,1.87221]
[1646499005021,1.1257,2671.4,2671.2,0.3782]
[1646499005223,1.1257,2671.4,2671.3,1.3143]
[1646499005821,0.187,2672.8,2671.5,0.3782]
[1646499006024,0.187,2672.8,2672.3,1.08542078]
[1646499006025,0.52899398,2672.8,2672.3,1.08542078]
[1646499006626,0.36321633,2672.8,2672.3,1.08542078]
[1646499006825,3.5,2673.4,2672.3,1.08542078]
[1646499006826,0.36321633,2672.6,2672.3,1.08542078]
[1646499007023,0.36321633,2672.8,2672.3,1.08542078]
[1646499007624,0.36321633,2672.8,2672.3,1.08886866]
[1646499008227,0.19044628,2673.6,2672.3,1.46706866]
[1646499008477,0.187,2673.6,2672.3,1.46362078]
[1646499008780,0.187,2673.6,2672.4,0.00332091]
[1646499008781,0.36321633,2673.0,2672.4,0.00332091]
[1646499009277,1.53754287,2673.0,2672.4,0.00332091]
[1646499009576,0.36321633,2673.0,2672.4,0.00332091]
[1646499009777,0.36321633,2673.0,2672.3,1.46362078]
[1646499009977,0.36321633,2673.0,2672.6,0.00332081]
[1646499010580,1.0457967,2673.6,2672.6,0.00332081]
[1646499010581,0.36321633,2673.4,2672.6,0.00332081]
[1646499010779,0.36321633,2673.4,2672.7,0.3782]